fUSD/lending_fUSD_20260319
["ID","MTS","AMOUNT","RATE_DAILY","PERIOD"]
[408611970,1773946232728,-151.0,0.0001,2]
[408611972,1773946232737,-151.0,0.0001,2]
[408611974,1773946232746,-151.0,0.0001,2]
[408611976,1773946232756,-151.0,0.0001,2]
[408611978,1773946232765,-151.0,0.0001,2]
[408611980,1773946232775,-151.0,0.0001,2]
[408611982,1773946232785,-500.0,0.0001,2]
[408611984,1773946232794,-428.0,0.00010001,2]
[408611986,1773946232803,-178.0,0.00010012,2]
[408611987,1773946232813,-320.38259783,0.0001002,2]
[408611989,1773946232822,-650.0,0.00010021,2]
[408611990,1773946232831,-2542.48241779,0.00010056,2]
[408611991,1773946232840,-150.0,0.0001011,2]
[408611992,1773946232849,-161.0,0.00010887,2]
[408611993,1773946232858,-10000.0,0.00010898,2]
[408611994,1773946232868,-4931.96465756,0.000109,2]
[408611995,1773946232878,-26466.09357338,0.00010999,2]
[408611996,1773946232889,-699.0,0.00010999,2]
[408611998,1773946238299,-5809.59212662,0.00010999,2]
[408611999,1773946238309,-278.62054513,0.00010999,2]
[408612000,1773946238320,-721.37945487,0.00010999,2]
[408612001,1773946238330,-276.53950109,0.00011099,2]
[408612002,1773946238457,-4847.94218682,0.00011099,2]
[408612110,1773946243244,-603.0,0.00011099,2]
[408612112,1773946243456,-303.81518612,0.00011099,2]
[408612113,1773946243509,-937.70955075,0.00011099,2]
[408612114,1773946243565,-3366.12334852,0.00011099,2]
[408612115,1773946243574,-7433.87665148,0.00011099,2]
[408612116,1773946243693,-108.04028998,0.00011099,2]
[408612149,1773946246199,-261.02,0.00010661,2]
[408612331,1773947240143,-152.0,7.887e-05,2]
[408612332,1773947240166,-250.0,8.031e-05,2]
[408612333,1773947240187,-218.0,8.175e-05,2]
[408612334,1773947240208,-250.0,8.419e-05,2]
[408612335,1773947240229,-250.0,8.675e-05,2]
[408612336,1773947240252,-152.0,8.887e-05,2]
[408612337,1773947240274,-191.21,9.604e-05,2]
[408612338,1773947240295,-162.0,9.887e-05,2]
[408612339,1773947240316,-2428.1518,9.9e-05,2]
[408612340,1773947240339,-1208.08309607,0.0001,2]
[408612341,1773947240359,-1500.0,0.00010068,2]
[408612342,1773947240383,-376.55510393,0.00010105,2]
[408612347,1773947431337,-256.35489607,0.00010105,2]
[408612348,1773947431347,-233.0,0.00010105,2]
[408612349,1773947431359,-250.0,0.00010231,2]
[408612350,1773947431370,-250.0,0.00010344,2]
[408612351,1773947431379,-500.0,0.00010356,2]
[408612352,1773947431388,-300.0,0.00010399,2]
[408612353,1773947431422,-150.0,0.00010399,2]
[408612354,1773947431439,-60.64510394,0.00010399,2]
[408612355,1773947431453,-239.35489606,0.00010399,2]
[408612356,1773947431466,-301.55419742,0.000104,2]
[408612357,1773947431477,-240.61045933,0.000104,2]
[408612358,1773947431514,-1429.35654367,0.000104,2]
[408612359,1773947431526,-3695.84962922,0.000104,2]
[408612360,1773947431539,-4075.90892824,0.000104,2]
[408612361,1773947431548,-4086.13049714,0.000104,2]
[408612363,1773947431558,-268.60049143,0.000104,2]
[408612364,1773947431567,-499.86127203,0.000104,2]
[408612365,1773947431579,-461.05833013,0.000104,2]
[408612366,1773947431594,-509.09425357,0.000104,2]
[408612367,1773947431604,-3001.11,0.0001046,2]
[408612369,1773947431613,-1175.949225,0.00010461,2]
[408612370,1773947431622,-208.74527264,0.00010461,2]
[408612371,1773947431632,-6761.4828,0.00010461,2]
[408612372,1773947431641,-94179.9552,0.00010461,2]
[408612373,1773947431653,-2500.0,0.00010461,2]
[408612375,1773947431662,-26499.14035228,0.0001055,2]
[408612376,1773947431671,-181.34440017,0.00010551,2]
[408612377,1773947431680,-151.0,0.00010555,2]
[408612378,1773947431690,-151.0,0.00010555,2]
[408612379,1773947431699,-151.0,0.00010555,2]
[408612380,1773947431708,-151.0,0.00010558,2]
[408612381,1773947431717,-4172.296,0.0001056,2]
[408612382,1773947431726,-182.294,0.0001056,2]
[408612383,1773947431738,-43698.27812366,0.0001056,2]
[408612384,1773947431752,-164.84286557,0.0001056,2]
[408612385,1773947431767,-500.0,0.0001056,2]
[408612386,1773947431800,-381.96352951,0.0001056,2]
[408612387,1773947431812,-150.50246649,0.0001056,2]
[408612388,1773947431822,-500.0,0.0001056,2]
[408612389,1773947431832,-155.35172654,0.0001056,2]
[408612390,1773947431841,-558.56525513,0.0001056,2]
[408612391,1773947431850,-500.0,0.0001056,2]
[408612392,1773947431860,-265.51198384,0.0001056,2]
[408612393,1773947431879,-32974.6857,0.00010561,2]
[408612394,1773947431889,-1000.0,0.00010561,2]
[408612395,1773947431920,-787233.51275285,0.00010561,2]
[408612396,1773947431940,-1203.68848942,0.00010561,2]
[408612397,1773947431957,-462.11065713,0.00010561,2]
[408612398,1773947432094,-0.76806769,0.00010561,2]
[408612399,1773947432109,-577.69225892,0.00010561,2]
[408612400,1773947432120,-15722.63125079,0.00010561,2]
[408612403,1773947437468,-690.45,0.00010561,2]
[408612407,1773947437514,-1310.38674493,0.00010561,2]
[408612409,1773947437626,-556.0,0.00010561,2]
[408612410,1773947437701,-618.24385212,0.00010561,2]
[408612411,1773947437739,-618.6790189,0.00010561,2]
[408612412,1773947437770,-2338.72607654,0.00010561,2]
[408612413,1773947437801,-889.441543,0.00010561,2]
[408612418,1773947439838,-746.87940394,0.00010561,2]
[408612419,1773947439850,-363.61363645,0.00010561,2]
[408612420,1773947439862,-263.1618392,0.00010561,2]
[408612421,1773947440100,-182830.10324147,0.00010561,2]
[408612422,1773947440112,-57643.4380398,0.00010561,2]
[408612453,1773947445958,-213469.999997,0.00010561,2]
[408612454,1773947445968,-3851.39153568,0.00010561,2]
[408612455,1773947445980,-1658.61996298,0.00010561,2]
[408612456,1773948601831,1234.19,0.00010082,14]
[408612472,1773948631572,-250.0,7.887e-05,2]
[408612474,1773948631582,-216.0,7.887e-05,2]
[408612476,1773948631591,-95.36,8.351e-05,2]
[408612481,1773948631625,-700.05,8.351e-05,2]
[408612483,1773948631636,-2748.38441466,8.351e-05,2]
[408612485,1773948631646,-1804.90745837,8.63e-05,2]
[408612486,1773948631655,-217.957864,8.63e-05,2]
[408612487,1773948631665,-300.0,8.673e-05,2]
[408612488,1773948631674,-1200.0,8.673e-05,2]
[408612489,1773948631683,-150.0,8.675e-05,2]
[408612490,1773948631692,-5000.0,8.675e-05,2]
[408612491,1773948631701,-5000.0,8.675e-05,2]
[408612492,1773948631710,-384.5157922,8.675e-05,2]
[408612493,1773948631719,-250.0,8.675e-05,2]
[408612494,1773948631728,-5000.0,8.676e-05,2]
[408612495,1773948631737,-250.0,8.676e-05,2]
[408612496,1773948631746,-6681.21,9.066e-05,2]
[408612497,1773948631757,-500.0,9.069e-05,2]
[408612498,1773948631768,-10000.0,9.123e-05,2]
[408612499,1773948631777,-1979.55,9.151e-05,2]
[408612500,1773948631787,-2000.0,9.331e-05,2]
[408612502,1773948631796,-1804.90745835,9.365e-05,2]
[408612504,1773948631808,-166.66,9.488e-05,2]
[408612505,1773948631817,-100407.71748422,9.5e-05,3]
[408612508,1773948631837,-349.05701941,9.5e-05,3]
[408612511,1773948631853,-5672.5664004,9.5e-05,3]
[408612513,1773948631864,-1115.33881024,9.5e-05,3]
[408612515,1773948631875,-437.436765,9.5e-05,3]
[408612556,1773948637633,-888.5671607,9.5e-05,3]
[408612557,1773948637644,-965.60128741,9.5e-05,3]
[408612558,1773948637688,-58467.91055809,9.5e-05,3]
[408612559,1773948637794,-347.32,9.5e-05,3]
[408612560,1773948637809,-1020.29583807,9.5e-05,3]
[408612561,1773948637853,-15713.42564278,9.5e-05,3]
[408612570,1773948639858,-16339.72992309,9.5e-05,3]
[408612571,1773948639915,-513.28348177,9.5e-05,3]
[408612572,1773948640133,-1789.8913203,9.5e-05,3]
[408612573,1773948640343,-2522.48116495,9.5e-05,3]
[408612579,1773948642877,-5150.07752694,9.5e-05,3]
[408612580,1773948642887,-337.0,9.54e-05,2]
[408612581,1773948642897,-1680.0,9.54e-05,2]
[408612582,1773948642906,-255.0,9.542e-05,2]
[408612583,1773948642916,-500.0,9.559e-05,2]
[408612584,1773948642926,-862.0,9.604e-05,2]
[408612585,1773948642935,-166.66,9.801e-05,2]
[408612586,1773948642945,-250.0,9.836e-05,2]
[408612587,1773948642955,-500.0,9.886e-05,2]
[408612588,1773948642968,-500.0,9.886e-05,2]
[408612589,1773948642978,-500.0,9.886e-05,2]
[408612591,1773948642988,-500.0,9.886e-05,2]
[408612592,1773948642998,-500.0,9.886e-05,2]
[408612593,1773948643008,-500.0,9.886e-05,2]
[408612594,1773948643017,-500.0,9.886e-05,2]
[408612595,1773948643027,-500.0,9.886e-05,2]
[408612596,1773948643037,-500.0,9.886e-05,2]
[408612597,1773948643047,-500.0,9.886e-05,2]
[408612598,1773948643056,-500.0,9.886e-05,2]
[408612599,1773948643067,-500.0,9.886e-05,2]
[408612600,1773948643076,-500.0,9.886e-05,2]
[408612601,1773948643087,-306.02537428,9.886e-05,2]
[408612603,1773948643098,-1000.0,9.9e-05,3]
[408612605,1773948643109,-1804.90745835,0.0001,2]
[408612606,1773948643119,-2100.0,0.0001,3]
[408612607,1773948643129,-3337.836,0.00010087,2]
[408612608,1773948643139,-182.294,0.00010087,2]
[408612610,1773948643149,-46638.54399257,0.0001009,2]
[408612611,1773948643159,-227.29617255,0.000101,2]
[408612613,1773948643170,-353.51737407,0.000101,2]
[408612614,1773948643179,-380.94697283,0.000101,2]
[408612615,1773948643189,-397.3309075,0.000101,2]
[408612616,1773948643199,-8500.48536425,0.000101,2]
[408612617,1773948643209,-1002.24584653,0.00010104,2]
[408612618,1773948643218,-166.66,0.00010114,2]
[408612619,1773948643229,-4143.8693,0.00010151,2]
[408612620,1773948643239,-1039.4415,0.0001016,2]
[408612621,1773948643249,-2500.0,0.00010161,2]
[408612622,1773948643258,-151.0,0.00010255,2]
[408612623,1773948643268,-151.0,0.00010255,2]
[408612624,1773948643278,-151.0,0.00010255,2]
[408612625,1773948643288,-151.0,0.00010255,2]
[408612626,1773948643297,-151.0,0.00010255,2]
[408612627,1773948643308,-151.0,0.00010255,2]
[408612628,1773948643318,-151.0,0.00010255,2]
[408612629,1773948643328,-151.0,0.00010255,2]
[408612630,1773948643337,-151.0,0.00010255,2]
[408612631,1773948643350,-151.0,0.00010255,2]
[408612632,1773948643360,-151.0,0.00010255,2]
[408612633,1773948643370,-151.0,0.00010255,2]
[408612634,1773948643380,-151.0,0.00010255,2]
[408612635,1773948643390,-151.0,0.00010255,2]
[408612636,1773948643399,-151.0,0.00010255,2]
[408612637,1773948643410,-151.0,0.00010255,2]
[408612638,1773948643419,-151.0,0.00010255,2]
[408612639,1773948643429,-151.0,0.00010255,2]
[408612640,1773948643438,-278.42140967,0.00010255,2]
[408612641,1773948643448,-1065.50192028,0.00010255,2]
[408612642,1773948643457,-609.78,0.0001026,2]
[408612643,1773948643467,-617.37447065,0.0001026,2]
[408612644,1773948643476,-500.0,0.0001026,2]
[408612645,1773948643485,-500.0,0.0001026,2]
[408612646,1773948643495,-500.0,0.0001026,2]
[408612647,1773948643505,-500.0,0.0001026,2]
[408612648,1773948643515,-500.0,0.0001026,2]
[408612649,1773948643524,-500.0,0.0001026,2]
[408612650,1773948643534,-500.0,0.0001026,2]
[408612651,1773948643543,-500.0,0.0001026,2]
[408612652,1773948643553,-500.0,0.0001026,2]
[408612653,1773948643564,-500.0,0.0001026,2]
[408612654,1773948643574,-500.0,0.0001026,2]
[408612655,1773948643583,-500.0,0.0001026,2]
[408612656,1773948643592,-500.0,0.0001026,2]
[408612657,1773948643602,-500.0,0.0001026,2]
[408612658,1773948643612,-500.0,0.0001026,2]
[408612659,1773948643905,-500.0,0.0001026,2]
[408612660,1773948643915,-500.0,0.0001026,2]
[408612661,1773948643924,-500.0,0.0001026,2]
[408612662,1773948643933,-500.0,0.0001026,2]
[408612663,1773948643942,-500.0,0.0001026,2]
[408612664,1773948643951,-500.0,0.0001026,2]
[408612665,1773948643960,-500.0,0.0001026,2]
[408612666,1773948643969,-500.0,0.0001026,2]
[408612667,1773948643979,-500.0,0.0001026,2]
[408612668,1773948643988,-500.0,0.0001026,2]
[408612669,1773948643998,-500.0,0.0001026,2]
[408612670,1773948644007,-500.0,0.0001026,2]
[408612671,1773948644016,-500.0,0.0001026,2]
[408612672,1773948644030,-500.0,0.0001026,2]
[408612673,1773948644039,-500.0,0.0001026,2]
[408612674,1773948644050,-500.0,0.0001026,2]
[408612675,1773948644059,-500.0,0.0001026,2]
[408612676,1773948644068,-500.0,0.0001026,2]
[408612677,1773948644078,-267.1129811,0.0001026,2]
[408612678,1773948644087,-500.0,0.0001026,2]
[408612679,1773948644097,-500.0,0.0001026,2]
[408612680,1773948644108,-500.0,0.0001026,2]
[408612681,1773948644120,-500.0,0.0001026,2]
[408612682,1773948644129,-500.0,0.0001026,2]
[408612683,1773948644138,-500.0,0.0001026,2]
[408612684,1773948644147,-500.0,0.0001026,2]
[408612685,1773948644156,-500.0,0.0001026,2]
[408612686,1773948644165,-500.0,0.0001026,2]
[408612687,1773948644175,-500.0,0.0001026,2]
[408612688,1773948644183,-500.0,0.0001026,2]
[408612689,1773948644192,-408.74620858,0.0001026,2]
[408612690,1773948644201,-500.0,0.0001026,2]
[408612691,1773948644210,-500.0,0.0001026,2]
[408612692,1773948644219,-500.0,0.0001026,2]
[408612693,1773948644228,-500.0,0.0001026,2]
[408612694,1773948644237,-500.0,0.0001026,2]
[408612695,1773948644246,-500.0,0.0001026,2]
[408612696,1773948644255,-500.0,0.0001026,2]
[408612697,1773948644264,-500.0,0.0001026,2]
[408612698,1773948644273,-500.0,0.0001026,2]
[408612699,1773948644281,-250.0,0.0001026,2]
[408612700,1773948644290,-500.0,0.0001026,2]
[408612701,1773948644299,-500.0,0.0001026,2]
[408612702,1773948644309,-500.0,0.0001026,2]
[408612703,1773948644318,-500.0,0.0001026,2]
[408612704,1773948644327,-1007.95647858,0.00010261,2]
[408612705,1773948644336,-579984.9687418,0.00010261,2]
[408612706,1773948644353,-1214.0,0.00010261,2]
[408612712,1773948645849,-2796.30702904,0.00010261,2]
[408612713,1773948645890,-1199.9744064,0.00010261,2]
[408612714,1773948645901,-317.09583367,0.00010261,2]
[408612720,1773948986581,158.8,4.933e-05,2]
[408612721,1773948986798,158.8,5.312e-05,2]
[408612722,1773948987005,158.8,5.692e-05,2]
[408612723,1773948987199,158.8,6.071e-05,2]
[408612724,1773948987411,158.8,6.451e-05,2]
[408612725,1773948987602,158.8,6.83e-05,2]
[408612726,1773948998197,-158.8,7.21e-05,2]
[408612731,1773949831874,-214.0,7.589e-05,2]
[408612732,1773949831885,-250.0,7.589e-05,2]
[408612733,1773949831895,-158.8,7.589e-05,2]
[408612734,1773949831904,-250.0,7.831e-05,2]
[408612735,1773949831914,-158.8,7.969e-05,2]
[408612736,1773949831923,-250.0,8.348e-05,2]
[408612738,1773949831932,-250.0,8.348e-05,2]
[408612739,1773949831942,-158.8,8.348e-05,2]
[408612741,1773949831951,-158.8,8.728e-05,2]
[408612743,1773949831961,-158.8,9.107e-05,2]
[408612744,1773949831970,-1500.0,9.123e-05,2]
[408612745,1773949831979,-952.85,9.316e-05,2]
[408612746,1773949831989,-2027.55,9.355e-05,2]
[408612747,1773949831999,-435.0,9.418e-05,2]
[408612749,1773949832008,-158.8,9.486e-05,2]
[408612750,1773949832018,-466.0,9.625e-05,2]
[408612752,1773949832027,-158.8,9.866e-05,2]
[408612754,1773949832036,-150.0,9.886e-05,2]
[408612756,1773949832045,-98433.7988,9.887e-05,2]
[408612758,1773949832054,-54888.88965579,9.887e-05,2]
[408612766,1773949837835,-1260.0,9.887e-05,2]
[408612767,1773949837847,-956.485885,9.887e-05,2]
[408612768,1773949837859,-5232.18195921,9.887e-05,2]
[408612769,1773949837868,-2500.0,9.89e-05,2]
[408612770,1773949837877,-500.0,9.973e-05,2]
[408612771,1773949837888,-500.0,9.973e-05,2]
[408612772,1773949837898,-500.0,9.973e-05,2]
[408612773,1773949837908,-500.31068947,9.973e-05,2]
[408612774,1773949837918,-151.0,9.984e-05,2]
[408612775,1773949837927,-151.0,9.984e-05,2]
[408612776,1773949837936,-151.0,9.987e-05,2]
[408612777,1773949837946,-500.0,9.989e-05,2]
[408612778,1773949837955,-310.14649925,9.989e-05,2]
[408612779,1773949837964,-564.90911735,9.989e-05,2]
[408612780,1773949837973,-500.0,9.989e-05,2]
[408612781,1773949837983,-500.0,9.989e-05,2]
[408612782,1773949837992,-500.0,9.989e-05,2]
[408612783,1773949838002,-500.0,9.989e-05,2]
[408612784,1773949838012,-500.0,9.989e-05,2]
[408612785,1773949838021,-500.0,9.989e-05,2]
[408612786,1773949838031,-500.0,9.989e-05,2]
[408612787,1773949838040,-488.21129811,9.989e-05,2]
[408612788,1773949838049,-500.0,9.989e-05,2]
[408612789,1773949838059,-32429.20149549,9.99e-05,2]
[408612939,1773949839967,-660.41391143,9.99e-05,2]
[408612940,1773949839978,-277.4197497,9.99e-05,2]
[408612941,1773949839990,-374.92317008,9.99e-05,2]
[408612942,1773949840001,-488.90382617,9.99e-05,2]
[408612943,1773949840014,-6849.59165372,9.99e-05,2]
[408612944,1773949840026,-2770.55619952,9.99e-05,2]
[408612945,1773949842791,-814.39336048,9.99e-05,2]
[408612954,1773949845677,-274.9071,9.99e-05,2]
[408612955,1773949845688,-13985.86908728,9.99e-05,2]
[408612956,1773949845789,-1534.52829099,9.99e-05,2]
[408612971,1773951031975,-224.0,8.958e-05,2]
[408612972,1773951031985,-2864.48,8.958e-05,2]
[408612973,1773951031996,-250.0,8.992e-05,2]
[408612974,1773951032006,-250.0,9.015e-05,2]
[408612975,1773951032016,-2000.0,9.026e-05,2]
[408612976,1773951032027,-500.0,9.109e-05,2]
[408612977,1773951032037,-160.59,9.109e-05,2]
[408612978,1773951032049,-166.67,9.177e-05,2]
[408612979,1773951032058,-500.0,9.253e-05,2]
[408612980,1773951032069,-300.0,9.315e-05,2]
[408612981,1773951032080,-1200.0,9.315e-05,2]
[408612982,1773951032092,-7807.84,9.378e-05,2]
[408612983,1773951032101,-36756.40448964,9.587e-05,2]
[408612984,1773951032124,-4526.83668561,9.587e-05,2]
[408612985,1773951032134,-605.6100191,9.587e-05,2]
[408612987,1773951032145,-805.47043148,9.587e-05,2]
[408612988,1773951032157,-2843.60522363,9.587e-05,2]
[408612989,1773951032167,-1132.53506354,9.587e-05,2]
[408612990,1773951032178,-4090.24667252,9.587e-05,2]
[408612994,1773951038057,-638.55537377,9.118e-05,2]
[408612995,1773951038068,-2146.84034245,9.118e-05,2]
[408612996,1773951038080,-5023.28428378,9.118e-05,2]
[408612997,1773951038088,-5058.99026435,9.587e-05,2]
[408612998,1773951038099,-192623.47405013,9.587e-05,2]
[408612999,1773951038109,-3523.4326021,9.591e-05,2]
[408613000,1773951038118,-1137.73,9.592e-05,2]
[408613001,1773951038127,-4357.776,9.686e-05,2]
[408613002,1773951038136,-188.701,9.686e-05,2]
[408613003,1773951038145,-150.0,9.686e-05,2]
[408613004,1773951038155,-32974.6857,9.687e-05,2]
[408613005,1773951038164,-1000.0,9.687e-05,2]
[408613006,1773951038173,-4143.8693,9.687e-05,2]
[408613007,1773951038182,-14516.51,9.687e-05,2]
[408613008,1773951038191,-999.99,9.687e-05,2]
[408613009,1773951038200,-8603.13,9.687e-05,2]
[408613010,1773951038209,-1541.29,9.687e-05,2]
[408613011,1773951038218,-3807.71,9.687e-05,2]
[408613012,1773951038227,-9999.99,9.687e-05,2]
[408613013,1773951038236,-150.99,9.687e-05,2]
[408613014,1773951038245,-150.99,9.687e-05,2]
[408613015,1773951038255,-9999.99,9.687e-05,2]
[408613016,1773951038264,-3804.48,9.687e-05,2]
[408613017,1773951038273,-299.99,9.687e-05,2]
[408613018,1773951038282,-4999.99,9.687e-05,2]
[408613019,1773951038291,-352.8,9.687e-05,2]
[408613020,1773951038300,-9999.99,9.687e-05,2]
[408613021,1773951038312,-2500.0,9.687e-05,2]
[408613022,1773951038321,-500.0,9.763e-05,2]
[408613023,1773951038330,-500.0,9.763e-05,2]
[408613025,1773951038339,-500.0,9.763e-05,2]
[408613027,1773951038348,-1204.0,9.827e-05,2]
[408613029,1773951038357,-186.4667415,9.827e-05,2]
[408613031,1773951038367,-250.0,9.854e-05,2]
[408613033,1773951038376,-250.0,9.854e-05,2]
[408613034,1773951038385,-500.0,9.873e-05,2]
[408613036,1773951038394,-155.0,9.895e-05,2]
[408613037,1773951038403,-500.0,9.896e-05,2]
[408613038,1773951038412,-5952.234978,9.896e-05,2]
[408613039,1773951038423,-58908.9151954,9.896e-05,2]
[408613040,1773951038432,-155084.3012805,9.896e-05,2]
[408613041,1773951038441,-12229.8478903,9.896e-05,2]
[408613042,1773951038451,-310269.0073198,9.896e-05,2]
[408613043,1773951038460,-151.0,9.896e-05,2]
[408613044,1773951038470,-151.0,9.896e-05,2]
[408613045,1773951038479,-242.162736,9.896e-05,2]
[408613046,1773951038488,-151.0,9.896e-05,2]
[408613047,1773951038498,-151.0,9.896e-05,2]
[408613048,1773951038507,-151.0,9.896e-05,2]
[408613049,1773951038516,-151.0,9.896e-05,2]
[408613050,1773951038525,-151.0,9.896e-05,2]
[408613051,1773951038542,-151.0,9.896e-05,2]
[408613052,1773951038558,-151.0,9.896e-05,2]
[408613053,1773951038570,-151.0,9.896e-05,2]
[408613054,1773951038580,-151.0,9.896e-05,2]
[408613055,1773951038589,-151.0,9.896e-05,2]
[408613056,1773951038598,-151.0,9.896e-05,2]
[408613057,1773951038608,-151.0,9.896e-05,2]
[408613058,1773951038617,-151.0,9.896e-05,2]
[408613059,1773951038626,-151.0,9.896e-05,2]
[408613060,1773951038635,-151.0,9.896e-05,2]
[408613061,1773951038644,-151.0,9.896e-05,2]
[408613062,1773951038652,-151.0,9.896e-05,2]
[408613063,1773951038662,-151.0,9.896e-05,2]
[408613064,1773951038670,-151.0,9.896e-05,2]
[408613065,1773951038679,-151.0,9.896e-05,2]
[408613066,1773951038688,-267.505027,9.896e-05,2]
[408613067,1773951038697,-223.1461142,9.896e-05,2]
[408613068,1773951038706,-166.4869965,9.896e-05,2]
[408613069,1773951038715,-1600.0,9.9e-05,3]
[408613070,1773951038724,-166.67,9.934e-05,2]
[408613071,1773951038733,-8024.97479288,9.938e-05,2]
[408613072,1773951038742,-996.0,9.99e-05,2]
[408613073,1773951038751,-159.0,9.99e-05,3]
[408613074,1773951038760,-157.0,9.99e-05,3]
[408613075,1773951038769,-2371.86596926,0.0001,2]
[408613076,1773951038778,-5835.14043471,0.0001,2]
[408613077,1773951038788,-5091.3692672,0.0001,2]
[408613078,1773951038796,-5654.21872508,0.0001,2]
[408613079,1773951038806,-212.26070361,0.0001,2]
[408613080,1773951038815,-314.05280778,0.0001,2]
[408613081,1773951038825,-336.14833356,0.0001,2]
[408613082,1773951038834,-349.26902669,0.0001,2]
[408613083,1773951038843,-252.24761161,0.0001,2]
[408613084,1773951038852,-151.0,0.0001,2]
[408613085,1773951038861,-3300.0,0.0001,3]
[408613086,1773951038871,-151.0,0.0001,2]
[408613087,1773951038880,-151.0,0.0001,2]
[408613088,1773951038889,-151.0,0.0001,2]
[408613089,1773951038897,-151.0,0.0001,2]
[408613090,1773951038905,-151.0,0.0001,2]
[408613091,1773951038913,-151.0,0.0001,2]
[408613092,1773951038921,-151.0,0.0001,2]
[408613093,1773951038929,-151.0,0.0001,2]
[408613094,1773951038939,-151.0,0.0001,2]
[408613095,1773951038953,-151.0,0.0001,2]
[408613096,1773951038962,-151.0,0.0001,2]
[408613097,1773951038971,-151.0,0.0001,2]
[408613098,1773951038980,-151.0,0.0001,2]
[408613099,1773951038991,-151.0,0.0001,2]
[408613100,1773951039000,-151.0,0.0001,2]
[408613101,1773951039009,-151.0,0.0001,2]
[408613102,1773951039018,-151.0,0.0001,2]
[408613103,1773951039027,-151.0,0.0001,2]
[408613104,1773951039036,-151.0,0.0001,2]
[408613105,1773951039045,-151.0,0.0001,2]
[408613106,1773951039055,-200.0,0.00010007,2]
[408613107,1773951039064,-1078.0,0.00010014,2]
[408613108,1773951039074,-160.59,0.0001002,2]
[408613109,1773951039083,-2000.0,0.00010154,2]
[408613110,1773951039092,-500.0,0.0001017,2]
[408613111,1773951039101,-410.17528527,0.00010243,2]
[408613112,1773951039110,-420.0,0.00010246,2]
[408613113,1773951039397,-1680.0,0.00010246,2]
[408613114,1773951039407,-1409.0,0.000103,5]
[408613115,1773951039417,-500.0,0.00010311,2]
[408613116,1773951039427,-8565.75555911,0.00010343,2]
[408613117,1773951039436,-500.0,0.00010343,2]
[408613118,1773951039445,-500.0,0.00010343,2]
[408613119,1773951039454,-250.0,0.00010343,2]
[408613120,1773951039464,-250.0,0.00010343,2]
[408613121,1773951039473,-250.0,0.00010343,2]
[408613122,1773951039481,-250.0,0.00010343,2]
[408613123,1773951039491,-250.0,0.00010343,2]
[408613124,1773951039500,-250.0,0.00010343,2]
[408613125,1773951039509,-250.0,0.00010343,2]
[408613126,1773951039517,-250.0,0.00010343,2]
[408613127,1773951039526,-250.0,0.00010343,2]
[408613128,1773951039536,-250.0,0.00010343,2]
[408613129,1773951039545,-250.0,0.00010343,2]
[408613130,1773951039554,-250.0,0.00010343,2]
[408613131,1773951039562,-250.0,0.00010343,2]
[408613132,1773951039571,-250.0,0.00010343,2]
[408613133,1773951039580,-8882.6885148,0.00010398,2]
[408613134,1773951039589,-500.0,0.00010398,2]
[408613135,1773951039598,-500.0,0.00010421,2]
[408613136,1773951039610,-166.66,0.00010428,2]
[408613137,1773951039619,-500.0,0.00010453,2]
[408613138,1773951039628,-9211.34798985,0.00010453,2]
[408613139,1773951039636,-236.03,0.00010471,2]
[408613140,1773951039645,-500.0,0.00010508,2]
[408613141,1773951039654,-9552.16786547,0.00010508,2]
[408613142,1773951039663,-161.5334,0.00010561,2]
[408613143,1773951039672,-500.0,0.00010563,2]
[408613144,1773951039681,-9905.5980765,0.00010563,2]
[408613145,1773951039689,-562.34804496,0.00010618,2]
[408613146,1773951039698,-10272.10520533,0.00010618,2]